Cogmind - Beta 15 @@@ ROGUE MODE // 2025.05.24 @ 21:27:15 Player: Epsilon 11 Result: Destroyed by as-64484 with Assembled Heavy Rifle Performance ------------- Evolutions (0) 0 Regions Visited (2) 400 Robots Destroyed (5) 25 Value Destroyed (111) 111 Prototype IDs (0) 0 Alien Tech Used (0) 0 Bonus (0) 0 TOTAL SCORE: 536 Bonus ------- None Cogmind --------- Core Integrity 0/250 Matter 300/300 Energy 82/100 System Corruption 5% Temperature Hot (245) Movement Core (50) Location -10/Mines Parts ------- > --- POWER (1) -------- (None) > --- PROPULSION (2) --- Wheel > --- UTILITY (2) ------ (None) > --- WEAPON (2) ------- (None) > --- INVENTORY (5) ---- Light Ion Engine Light Nuclear Core Improved Heat Sink Small Storage Unit Peak State ------------ > --- POWER ------------ Ion Engine > --- PROPULSION ------- Wheel Wheel > --- UTILITY ---------- High-capacity Storage Unit Core Shielding > --- WEAPON ----------- EM Pulse Gun Assault Rifle > --- INVENTORY -------- Light Ion Engine Light Nuclear Core Improved Heat Sink Small Storage Unit Particle Gun [Rating: 8] Favorites ----------- Power Ion Engine Engine Ion Engine Propulsion Wheel Wheel Wheel Utility High-capacity Storage Unit Device Improved Terrain Scanner Storage High-capacity Storage Unit Protection Core Shielding Weapon Assault Rifle Energy Gun EM Pulse Gun Ballistic Gun Assault Rifle Build | -11 -10 -10 ------- Run | Yrd Mat Min Slots Evolved . | . . . Power . | . . . Propulsion . | . . . Utility . | . . . Weapon . | . . . Parts Attached 13 | 8 2 3 Power 2 | 2 . . Engine 2 | 2 . . Core . | . . . Reactor . | . . . Propulsion 3 | 2 . 1 Treads . | . . . Leg . | . . . Wheel 3 | 2 . 1 Hover . | . . . Flight . | . . . Utility 4 | 1 2 1 Device 1 | . . 1 Storage 2 | 1 1 . Processor . | . . . Hackware . | . . . Protection 1 | . 1 . Artifact . | . . . Weapon 4 | 3 . 1 Energy Gun 2 | 1 . 1 Energy Cannon . | . . . Ballistic Gun 2 | 2 . . Ballistic Cannon . | . . . Launcher . | . . . Special Weapon . | . . . Impact Weapon . | . . . Slashing Weapon . | . . . Piercing Weapon . | . . . Special Melee Weapon . | . . . Unidentified Prototypes . | . . . Parts Lost 8 | . . 8 Power 1 | . . 1 Propulsion 2 | . . 2 Utility 2 | . . 2 Weapon 3 | . . 3 Highest Loss Streak 7 | . . 7 To Critical Strikes . | . . . Average Backups 3 | 1 3 4 Power 1 | . 1 2 Propulsion . | . . . Utility 1 | . 1 2 Weapon . | . 1 . Tool/Special . | . . . Unused Backups 2 | . . 2 Power 1 | . . 1 Propulsion . | . . . Utility 1 | . . 1 Weapon . | . . . Tool/Special . | . . . Average Slot Usage (%) 87 | . 87 88 Engine 13 | . 14 12 Wheel 26 | . 28 23 Storage 13 | . 14 12 Protection 5 | . 2 14 Energy Gun 13 | . 14 10 Ballistic Gun 13 | . 14 12 Peak Build Rating 8 | 6 8 8 Average Rating 6 | 4 6 7 On Entrance 4 | . 6 8 Naked Turns . | . . . Heaviest Build 51 | 14 50 51 Greatest Support 20 | 20 20 20 Greatest Overweight (x) 2 | . 2 2 Average Overweight (x) . | . . 1 Largest Inventory Capacity 20 | 8 20 20 Average Capacity 14 | 7 13 18 Most Carried 5 | 2 5 5 Average Carried 3 | 1 3 4 Final Capacity 20 | 8 20 5 Final Carried 5 | 2 5 4 Class Distribution -------------------- 100% | Mutant Dominant Class ---------------- Mutant | -10/Materials Mutant | -10/Mines Resources | -11 -10 -10 ----------- Run | Yrd Mat Min Matter Collected 334 | 242 50 42 Remotely . | . . . Salvage Created 159 | . 106 53 Parts 11 | . 5 6 Haulers Intercepted . | . . . Recyclers Shooed . | . . . Parts Field Recycled . | . . . Retrieved Matter . | . . . Parts Self-Destructed . | . . . Prevented . | . . . Kills | -11 -10 -10 ------- Run | Yrd Mat Min Combat Hostiles Destroyed 6 | . 2 4 Guns 6 | . 2 4 Classes Destroyed 3 | . 1 2 Swarmer 3 | . . 3 Grunt 2 | . 2 . Assembled 1 | . . 1 Best Kill Streak 3 | . 2 3 Combat Bots Only 3 | . 2 3 Max Kills in Single Turn 1 | . 1 1 Gunslinging . | . . . Exploded . | . . . Melee . | . . . Uniques/NPCs Destroyed . | . . . Combat | -11 -10 -10 -------- Run | Yrd Mat Min Hostile Shots Fired 79 | . 11 68 Missed 15 | . 2 13 Hits 64 | . 9 55 Melee 3 | . . 3 Projectile 61 | . 9 52 Critical Strikes 1 | . . 1 Damage Taken 765 | . 104 661 Core 253 | . 10 243 Absorbed by Shields . | . . . Redirected to Shielding 31 | . 2 29 Core Remaining (%) 100 | 100 . . Volleys Fired 18 | . 5 13 Largest 2 | . 2 2 Hottest 85 | . 60 85 Shots Fired 33 | . 10 23 Gun 33 | . 10 23 Cannon . | . . . Launcher . | . . . Special . | . . . Kinetic 18 | . 5 13 Thermal 7 | . . 7 Explosive . | . . . Electromagnetic 8 | . 5 3 Robot Hit Streak 3 | . 3 3 Robot Miss Streak 4 | . 1 4 Penetration Max . | . . . Secondary Targets 1 | . . 1 Max Gunslinging Chain 1 | . . 1 Shots Hit Robots 16 | . 6 10 Core Hits 10 | . 4 6 Critical Kills . | . . . Critical Parts Destroyed . | . . . Critical Strikes . | . . . Melee Attacks . | . . . Impact . | . . . Slashing . | . . . Piercing . | . . . Sneak Attacks . | . . . Combat Hostiles . | . . . Follow-up Attacks . | . . . Damage Inflicted 221 | . 84 137 Guns 217 | . 84 133 Cannons . | . . . Explosions . | . . . Melee . | . . . Ramming 4 | . . 4 Kinetic 89 | . 29 60 Thermal 61 | . . 61 Explosive . | . . . Electromagnetic 67 | . 55 12 Impact . | . . . Slashing . | . . . Piercing . | . . . Highest Corruption 5 | . . 5 Average Corruption 5 | . . 5 Corruption Purged . | . . . Corruption Blocked . | . . . Effects 1 | . . 1 Data Loss (minor) 1 | . . 1 Overload Shots . | . . . Overflow Damage . | . . . Projectiles . | . . . Explosions . | . . . Melee . | . . . Knockbacks . | . . . Impact . | . . . Kinetic . | . . . Secondary . | . . . Self-Inflicted Damage 1 | . . 1 Shots . | . . . Rammed 3 | . . 3 Targets Rammed 3 | . . 3 Kicked . | . . . Crushed . | . . . Highest Temperature 290 | . 27 290 Average Temperature 115 | . 17 146 Received Heat Transfer 477 | . 57 420 Siege Activations . | . . . Martial Activations . | . . . Shielding Activations . | . . . Robots Disrupted . | . . . Combat Hostiles . | . . . Robots Corrupted . | . . . Combat Hostiles . | . . . Parts Fried . | . . . Impact Corruptions . | . . . Robots Melted . | . . . Combat Hostiles . | . . . Parts Melted . | . . . Heat Transferred 148 | . . 148 Parts Sabotaged . | . . . Parts Stolen . | . . . Parts Stripped . | . . . Power Chain Reactions . | . . . Alert | -11 -10 -10 ------- Run | Yrd Mat Min Maximum Alert Level . | . . . Low Security (%) 100 | 100 100 100 Level 1 . | . . . Level 2 . | . . . Level 3 . | . . . Level 4 . | . . . Level 5 . | . . . High Security . | . . . Max Security . | . . . Peak Influence 60 | . 51 60 Initial . | . . . Average 16 | . 13 30 Influence Increases 121 | . 51 70 Destroy 0b10 Robot/C 100 | . 40 60 Destroy Leader 20 | . 10 10 Destroy Structure 1 | . 1 . Influence Decreases 121 | . 51 70 Time Decay 81 | . 51 30 Lost Part 40 | . . 40 Squads Dispatched 2 | . 2 . Investigation . | . . . Extermination . | . . . Reinforcement 2 | . 2 . Assault . | . . . Garrison . | . . . Intercept . | . . . Searches Triggered . | . . . Construction Impeded . | . . . Haulers Reinforced . | . . . Active Scanning Responses . | . . . Cargo Convoy Interrupts . | . . . Stealth | -11 -10 -10 --------- Run | Yrd Mat Min Distress Signals 1 | . 1 . Communications Jammed . | . . . Distress Signals . | . . . Times Spotted 33 | . 8 25 Peak Tracking Total 20 | . 5 20 Tactical Retreats 1 | . . 1 Traps | -11 -10 -10 ------- Run | Yrd Mat Min Traps Triggered . | . . . Indirectly . | . . . Trap Hack Attempts . | . . . Triggered . | . . . Disarmed . | . . . Reprogrammed . | . . . Reused . | . . . Traps Extracted . | . . . Installed . | . . . Triggered . | . . . Machines | -11 -10 -10 ---------- Run | Yrd Mat Min Machines Disabled . | . . . Max in Single Turn . | . . . Machines Repaired . | . . . Machines Dismantled . | . . . Machines Sabotaged . | . . . Overloaded Fab Kills . | . . . Hacking | -11 -10 -10 --------- Run | Yrd Mat Min Machines Accessed . | . . . Terminals . | . . . Fabricators . | . . . Repair Stations . | . . . Recycling Units . | . . . Scanalyzers . | . . . Garrison Access . | . . . Total Hacks . | . . . Successful . | . . . Failed . | . . . Catastrophic . | . . . Database Lockouts . | . . . Manual . | . . . Terminals . | . . . Fabricators . | . . . Repair Stations . | . . . Recycling Units . | . . . Scanalyzers . | . . . Garrison Access . | . . . Terminal Hacks . | . . . Fabricator Hacks . | . . . Repair Station Hacks . | . . . Recycling Unit Hacks . | . . . Scanalyzer . | . . . Garrison Access Hacks . | . . . Unauthorized Hacks . | . . . Terminals . | . . . Fabricators . | . . . Repair Stations . | . . . Recycling Units . | . . . Scanalyzers . | . . . Garrison Access . | . . . Data Cores Recovered . | . . . Used . | . . . Hacking Detections . | . . . Full Trace Events . | . . . Feedback Events . | . . . Feedback Blocked . | . . . Robot Schematics Acquired . | . . . Robots Built . | . . . Authchips . | . . . Time . | . . . Total Robot Build Rating . | . . . Part Schematics Acquired . | . . . Parts Built . | . . . Authchips . | . . . Time . | . . . Total Part Build Rating . | . . . Parts Repaired . | . . . Time . | . . . Parts Recycled . | . . . Recycled Matter . | . . . Retrieved Matter . | . . . Retrieved Components . | . . . Parts Scanalyzed . | . . . Part Schematics Acquired . | . . . Parts Damaged . | . . . Bothacking | -11 -10 -10 ------------ Run | Yrd Mat Min Used RIF Installer . | . . . Robots Hacked . | . . . Non-combat . | . . . Combat . | . . . Robot Hacks Applied . | . . . Relay Couplers Released . | . . . Fabnet Peak Effective % . | . . . Robots Rewired . | . . . Allies Hacked . | . . . Hacks Repelled . | . . . Allies | -11 -10 -10 -------- Run | Yrd Mat Min Total Allies . | . . . Largest Group . | . . . Highest-Rated Group . | . . . Highest-Rated Ally . | . . . Total Orders . | . . . Ally Attacks . | . . . Total Damage . | . . . Kills . | . . . Allies Corrupted . | . . . Allies Melted . | . . . Intel | -11 -10 -10 ------- Run | Yrd Mat Min Active Infowar (turns) 4 | . . 4 Terrain 4 | . . 4 Robot Analysis Total . | . . . Derelict Logs Recovered . | . . . Drone Launches . | . . . Drone Recoveries . | . . . Exploration | -11 -10 -10 ------------- Run | Yrd Mat Min Turns Passed 326 | 46 193 87 Spaces Moved 254 | 42 172 40 Core 4 | 2 . 2 Treads . | . . . Legs . | . . . Wheels 250 | 40 172 38 Hover . | . . . Flight . | . . . Fastest Speed 50 | 50 80 50 Average Speed 93 | 78 94 104 Slowest Speed 110 | 80 110 110 Overloaded Moves . | . . . Propulsion Burnouts . | . . . Robots Hopped . | . . . Potential Cave-ins . | . . . Cave-ins Triggered . | . . . Exploration Rate (%) 16 | 3 37 8 Regions Visited 2 Branch Regions 1 Pre-discovered Areas . | . . . Known Exits Taken . | . . . Unknown Exits Taken 2 | 1 1 . Scrap Searched . | . . . Spaces Dug . | . . . Terrain Destroyed . | . . . Melee . | . . . Projectile . | . . . AOE . | . . . Terrain Rammed . | . . . Walls Destroyed . | . . . Machines Disabled . | . . . Actions | -11 -10 -10 --------- Run | Yrd Mat Min Total 305 | 50 193 62 Wait 12 | . 10 2 Move 252 | 41 171 40 Hop . | . . . Pick Up 4 | 1 3 . Fast Attach 10 | 6 2 2 Attach 1 | . . 1 Detach 1 | . 1 . Swap 2 | 2 . . Drop 2 | . 1 1 Fire 18 | . 5 13 Melee . | . . . Ram 3 | . . 3 Kick . | . . . Crush . | . . . Escape Stasis . | . . . Rewire . | . . . Trap . | . . . Miscellaneous . | . . . Route ------- -11/Scrapyard -10/Materials (discovered 2 exits: [*Mat] / [*Min]) -10/Mines History --------- Turn | Location | Event 24 | -11/Scrapyard | Discovered new exit (range 15) 47 | -11/Scrapyard | Entered Materials 134 | -10/Materials | Discovered new exit (range 13) 221 | -10/Materials | Discovered new exit (range 15) 240 | -10/Materials | Entered Mines 283 | -10/Mines | Assembled infested the area 288 | -10/Mines | Assisted by a Guerilla fighting off Assembled 310 | -10/Mines | Build established: Mutant 323 | -10/Mines | Core integrity fell below 50% 327 | -10/Mines | Core integrity fell below 20% 327 | -10/Mines | Destroyed by as-64484 with Assembled Heavy Rifle Last Messages --------------- 00307_ Wheel destroyed. 00307_ System corrupted by crushing effect (+5). 00311_ Destroyed Asb. Hover Unit. 00312_ Particle Gun destroyed. 00312_ Ion Engine destroyed. 00313_ Wheel destroyed. 00314_ as-26139 destroyed. 00317_ System corrupted: Component data lost. 00317_ Assault Rifle destroyed. 00318_ Dropped Hcp. Storage Unit. 00319_ Acquired Imp. Terrain Scanner. 00321_ Acquired Wheel. 00323_ Imp. Terrain Scanner destroyed. 00324_ Slammed into as-83852. 00325_ Core Shielding destroyed. 00326_ Slammed into as-63601. 00326_ Critical hit (Burn: +80). 00327_ Slammed into as-63601. 00327_ Wheel broken. 00327_ Destabilizing: Short circuit. Map ----- +----------------------------------------------------+ | | | | | | | | | | | ?????????????????????????????????????? | | ?????????????????????????????????????? | | ?????????????????????????????????????? | | ?????????????????????????????????????? | | ?????????????????????????????????????? | | ?????????????????????????????????????? | | ?????????????????????????????????????? | | ?????????????????????????########????? | | ?????????????????????##### #????? | | ?????????????????????# = #????? | | ?????????????????????# ### = [ #????? | | ?????????????????????# #?# *[=#????? | | ?????????????????????# #?# #????? | | ?????????????????????# #?# #????? | | ?????????????????????# #?# #????? | | ?????????????????????# #?# #????? | | ?????????????????????# #?########????? | | ?????????????????????# #?????????????? | | ?????????????????????# #?????????????? | | ?????????????????????# #######???????? | | ?????????????????????# a@ ##??????? | | ?????????????????? ??# %aaaaaa##?????? | | ?????????????????????# a###a #?????? | | ?????????????????????#aa#?#% % #?????? | | ????????????????????##a #?##! ##?????? | | ?????????????????????# #??####??????? | | ?????????????????????# #????????????? | | ????????????????? ???# #????????????? | | ?????????????????????# #????????????? | | ????????????????????? ????????????? | | ????????????????????? % ????????????? | | ????????????????????? %????????????? | | ???????????????????? ????????????? | | ???????????????????? ????????????? | | ???????????????????? ???????????? | | ????????????????????? ???????????? | | ????????????????????? ????????????? | | ?????????????????????????????????????? | | ?????????????????????????????????????? | | ?????????????????????????????????????? | | ?????????????????????????????????????? | | ?????????????????????????????????????? | | ?????????????????????????????????????? | | ?????????????????????????????????????? | | ?????????????????????????????????????? | +----------------------------------------------------+ Best States ------------- Heat Dissipation 25 Energy Generation 10 Energy Capacity 250 Matter Stores 300 Matter Capacity 300 Sight Range 16 Terrain Scan Range 16 Terrain Scan Density 10 Core Shielding 20 Evasion (%) 44 Item Schematics ----------------- None Robot Schematics ------------------ None Fabricated ------------ Nothing Repaired ---------- Nothing Alien Tech Used ----------------- None Achievements -------------- None Challenges ------------ None Game ------ Seed GhostPowerMallet Manual? 0 Play Time 00:05:41 Cumulative 304.9 hours Start 2025.05.24 @ 21:23:00 End 2025.05.24 @ 21:27:15 Sessions 1 Manual Loads 0 Difficulty Rogue Special Mode None Game No. 149 Rogue 106 Adventurer 43 Explorer 0 Win Type - Total 6 Types 4/0/1/0/0/0/0/1/0/0 Lore% 82 Gallery% 71 Achievement% 65 Wizard Run 0 Options --------- Layout 0 ASCII 0 Keyboard 0 Movement Numpad Keybinds 0 Fullscreen 1 Font 24/Smallcaps Map View 76x50 Zoom Use 0% Tactical HUD 1 Map Filters NONE Filters NONE Steam 1 RUN: 782d23e0-6e0c-459e-8b1b-2287871263b0